bitfinex/quotes_ETHUSD_20230904
["timestamp","ask_amount","ask_price","bid_price","bid_amount"]
[1693834307430,20.4767835,1634.3,1634.2,1.99734398]
[1693834307631,20.4767835,1634.3,1634.2,1.35895884]
[1693834308543,20.4767835,1634.3,1634.2,1.99734398]
[1693834309575,20.4767835,1634.3,1634.2,1.35895884]
[1693834309777,20.4767835,1634.3,1634.2,1.99734398]
[1693834310349,20.4767835,1634.3,1634.2,1.35895884]
[1693834325564,20.4767835,1634.3,1634.2,1.99734398]
[1693834327104,20.4767835,1634.3,1634.2,1.35895884]
[1693834327932,16.49916519,1634.4,1634.2,1.35895884]
[1693834327933,8.56676,1634.4,1634.2,1.35895884]
[1693834328077,6.1186,1634.4,1634.2,1.99734398]
[1693834328276,12.23728,1634.4,1634.3,1.06316197]
[1693834328805,12.23728,1634.4,1634.3,1.35221753]
[1693834329104,12.23728,1634.4,1634.3,1.35691238]
[1693834333708,18.35596,1634.4,1634.3,1.35691238]
[1693834338430,21.40295837,1634.4,1634.3,1.35691238]
[1693834343539,22.80995837,1634.4,1634.3,1.35691238]
[1693834347445,22.80995837,1634.4,1634.3,0.29375041]
[1693834347744,22.80995837,1634.4,1634.3,1.35689707]
[1693834357372,23.30253735,1634.4,1634.3,1.35689707]
[1693834359269,26.38439139,1634.4,1634.3,1.35689707]
[1693834361736,18.35596,1634.4,1634.3,1.35689707]
[1693834362956,19.76296,1634.4,1634.3,1.35689707]
[1693834367089,13.64428,1634.4,1634.3,1.35689707]
[1693834374212,18.35596,1634.4,1634.3,1.35689707]
[1693834391217,18.35596,1634.4,1634.3,1.35564307]
[1693834393330,18.35596,1634.4,1634.3,0.29249641]
[1693834393514,18.35596,1634.4,1634.3,1.35561089]
[1693834395230,18.35596,1634.4,1634.3,1.35217004]
[1693834405053,18.35596,1634.4,1634.3,1.47935434]
[1693834414864,25.89181841,1634.4,1634.3,1.47935434]
[1693834415064,3.0,1634.1,1633.9,1.59400704]
[1693834415268,34.16160404,1634.0,1633.7,0.63838514]
[1693834415585,18.3621,1633.8,1633.6,0.63838514]
[1693834416334,18.3621,1633.8,1633.5,3.85080704]
[1693834417360,18.3621,1633.8,1633.5,2.89518514]
[1693834419367,19.7691,1633.8,1633.5,2.89518514]
[1693834420069,17.38263072,1633.9,1633.6,0.63838514]
[1693834420258,14.38263072,1633.9,1633.6,0.63838514]
[1693834420465,20.50328072,1633.9,1633.6,1.02346584]
[1693834422548,20.50328072,1633.9,1633.7,0.29328666]
[1693834423082,20.50328072,1633.9,1633.6,1.02346584]
[1693834426685,1.407,1633.8,1633.6,0.63838514]
[1693834426887,18.36321,1633.7,1633.6,0.63838514]
[1693834427054,17.72513107,1633.7,1633.6,0.63838514]
[1693834427249,11.60406107,1633.7,1633.6,0.63838514]
[1693834427455,5.48299107,1633.7,1633.6,0.63838514]
[1693834427650,5.48299107,1633.7,1633.6,1.02346584]
[1693834428076,11.60406107,1633.7,1633.6,1.02346584]
[1693834429585,11.60406107,1633.7,1633.6,0.63838514]
[1693834431467,12.24214,1633.7,1633.6,0.63838514]
[1693834435072,12.24214,1633.7,1633.6,1.70183936]
[1693834435456,12.24214,1633.7,1633.6,2.65746126]
[1693834436026,19.77021,1633.7,1633.6,1.70183936]
[1693834436314,22.359315,1633.7,1633.6,1.70183936]
[1693834436873,22.359315,1633.7,1633.6,1.99463857]
[1693834438302,19.77021,1633.7,1633.6,1.99463857]
[1693834439214,12.24214,1633.7,1633.6,1.99463857]
[1693834443209,12.24214,1633.7,1633.6,2.95026047]
[1693834444905,8.26220072,1633.9,1633.6,2.31187533]
[1693834445210,2.14172072,1633.9,1633.8,0.63715351]
[1693834445375,14.689565,1634.0,1633.8,0.63715351]
[1693834445576,14.689565,1634.0,1633.8,1.98593674]
[1693834445802,12.2404,1634.0,1633.9,1.70060773]
[1693834446001,12.2404,1634.0,1633.9,1.06345422]
[1693834446366,18.36059,1634.0,1633.9,1.06345422]
[1693834446568,19.76759,1634.0,1633.8,2.65622963]
[1693834447403,19.76759,1634.0,1633.9,0.63715351]
[1693834447605,18.36059,1634.0,1633.8,2.65622963]
[1693834447804,18.36059,1634.0,1633.9,1.06345422]
[1693834448203,18.36059,1634.0,1633.8,2.65622963]
[1693834448507,18.36059,1634.0,1633.9,1.06345422]
[1693834448697,18.36059,1634.0,1633.9,1.70060773]
[1693834448994,18.36059,1634.0,1633.9,0.63715351]
[1693834450714,18.36059,1634.0,1633.8,2.65622963]
[1693834450918,18.36059,1634.0,1633.9,1.06345422]
[1693834451215,18.36059,1634.0,1633.8,2.65622963]
[1693834451420,18.36059,1634.0,1633.9,1.06345422]
[1693834451817,18.36059,1634.0,1633.8,2.65622963]
[1693834452019,18.36059,1634.0,1633.9,0.27700093]
[1693834452190,18.36059,1634.0,1633.9,1.34045515]
[1693834453386,18.36059,1634.0,1633.9,1.97760866]
[1693834457530,21.95849486,1634.0,1633.9,1.34045515]
[1693834459503,21.95849486,1634.0,1633.9,1.97760866]
[1693834461600,21.95849486,1634.0,1633.9,1.34045515]
[1693834466206,19.76759,1634.0,1633.9,1.34045515]
[1693834468435,19.76759,1634.0,1633.9,0.27700093]
[1693834468832,19.76759,1634.0,1633.7,3.84967541]
[1693834469021,19.76759,1634.0,1633.8,1.0633988]
[1693834469225,19.76759,1634.0,1633.8,1.32647438]
[1693834469430,19.76759,1634.0,1633.8,0.26307558]
[1693834473308,1.407,1633.9,1633.8,0.26307558]
[1693834473506,13.64764,1633.9,1633.8,1.32647455]
[1693834476147,19.76796,1633.9,1633.8,1.32647455]
[1693834480328,21.744756,1633.9,1633.8,1.32647455]
[1693834480525,24.82661004,1633.9,1633.8,0.26307558]
[1693834481051,24.82661004,1633.9,1633.6,3.17767541]
[1693834481252,24.82661004,1633.9,1633.7,1.06345576]
[1693834481740,4.407,1633.8,1633.7,1.06345576]
[1693834481936,22.7691,1633.8,1633.7,1.06345576]
[1693834482120,26.99011108,1633.8,1633.6,1.70060927]
[1693834482321,1.407,1633.7,1633.6,1.70060927]
[1693834482521,19.77021,1633.7,1633.6,1.70060927]
[1693834483451,22.21938,1633.7,1633.6,1.70060927]
[1693834490137,24.36136286,1633.7,1633.6,1.70060927]
[1693834496860,24.36136286,1633.7,1633.6,1.96383414]
[1693834497074,24.36136286,1633.7,1633.6,1.32668063]
[1693834499480,16.83329286,1633.7,1633.6,1.77711623]
[1693834499682,14.38412286,1633.7,1633.6,2.41426974]
[1693834500181,18.36321,1633.7,1633.6,2.41426974]
[1693834501875,18.36321,1633.7,1633.6,1.32668063]
[1693834512395,18.36321,1633.7,1633.6,1.96383414]
[1693834515395,1.407,1633.8,1633.6,1.96383414]
[1693834515594,18.36321,1633.7,1633.6,0.90037838]
[1693834515794,18.36321,1633.7,1633.6,1.9638852]
[1693834520305,6.12107,1633.7,1633.6,2.41432591]
[1693834520606,12.24177,1633.8,1633.6,3.36994781]
[1693834520780,12.24177,1633.8,1633.7,1.06350682]
[1693834520981,12.24177,1633.8,1633.7,1.32624756]
[1693834521385,12.24177,1633.8,1633.7,1.06350682]
[1693834521803,5.99774872,1633.9,1633.7,1.32624756]
[1693834521965,6.12092,1633.8,1633.7,0.26274074]
[1693834522171,12.24189,1633.8,1633.7,1.32620002]
[1693834522371,12.24189,1633.8,1633.7,1.70061279]
[1693834524611,12.24189,1633.8,1633.7,1.96335353]
[1693834525517,6.12092,1633.8,1633.7,1.96335353]
[1693834526197,12.24189,1633.8,1633.7,1.96335353]
[1693834526715,12.24189,1633.8,1633.7,1.70061279]
[1693834529311,18.36286,1633.8,1633.7,1.70061279]
[1693834531711,18.36286,1633.8,1633.7,1.06345928]
[1693834531920,18.36286,1633.8,1633.7,1.32649447]
[1693834532321,18.36286,1633.8,1633.7,1.32993719]
[1693834541903,18.36286,1633.8,1633.7,1.70641625]
[1693834551739,18.36286,1633.8,1633.7,0.64295697]
[1693834551908,18.36286,1633.8,1633.7,1.70643829]
[1693834554447,18.36286,1633.8,1633.7,2.3435918]
[1693834554626,18.36286,1633.8,1633.7,1.70643829]
[1693834555236,18.36286,1633.8,1633.7,2.3435918]
[1693834555537,18.36286,1633.8,1633.7,1.70643829]
[1693834556443,18.36286,1633.8,1633.7,2.3435918]
[1693834556742,18.36286,1633.8,1633.7,1.70643829]
[1693834557541,18.36286,1633.8,1633.7,2.3435918]
[1693834566269,18.36286,1633.8,1633.7,1.70643829]
[1693834566646,18.36286,1633.8,1633.7,2.3435918]
[1693834567271,18.36286,1633.8,1633.7,1.70643829]
[1693834567770,18.36286,1633.8,1633.7,2.3435918]
[1693834582178,18.36286,1633.8,1633.7,1.70643829]
[1693834586086,18.36286,1633.8,1633.7,0.64295697]
[1693834586269,18.36286,1633.8,1633.7,1.7064544]
[1693834591490,22.20592087,1633.8,1633.7,1.7064544]
[1693834596759,19.76986,1633.8,1633.7,1.7064544]
[1693834612322,18.36286,1633.8,1633.7,1.7064544]
[1693834653496,18.36286,1633.8,1633.7,0.64295697]
[1693834653699,18.36286,1633.8,1633.7,1.70647193]
[1693834664708,19.76986,1633.8,1633.7,1.70647193]
[1693834672330,22.81795987,1633.8,1633.7,1.70647193]
[1693834674560,25.89981391,1633.8,1633.7,1.70647193]
[1693834674760,29.46149069,1633.8,1633.7,0.64295697]
[1693834675057,29.46149069,1633.8,1633.7,0.00344272]
[1693834675263,29.46149069,1633.8,1633.5,1.70076696]
[1693834675557,13.64988,1633.6,1633.5,1.70076696]
[1693834675865,19.77132,1633.6,1633.5,1.70076696]
[1693834676253,21.91343396,1633.6,1633.5,1.70574899]
[1693834676927,21.91343396,1633.6,1633.5,2.3067003]
[1693834677672,21.91343396,1633.6,1633.5,1.66954679]
[1693834683668,26.70287944,1633.6,1633.5,0.60593334]
[1693834683869,30.18287944,1633.6,1633.5,0.60593334]
[1693834685055,28.04076548,1633.6,1633.5,0.60593334]
[1693834685255,28.04076548,1633.6,1633.3,0.1]
[1693834685256,1.53645339,1633.4,1633.3,0.1]
[1693834685461,36.63625743,1633.4,1633.3,0.1]
[1693834685666,42.6843573,1633.4,1633.3,0.1]
[1693834686060,43.4215103,1633.4,1633.3,0.1]
[1693834686677,43.9015103,1633.4,1633.3,0.1]
[1693834687768,44.81978395,1633.4,1633.3,0.1]
[1693834690205,44.81978395,1633.4,1633.3,0.72437636]
[1693834696990,45.30574052,1633.4,1633.3,0.72437636]
[1693834705706,32.08764004,1633.4,1633.3,0.72437636]
[1693834705911,32.08764004,1633.4,1633.3,0.1]
[1693834706209,31.16936639,1633.4,1633.3,0.1]
[1693834707713,31.16936639,1633.4,1633.3,0.67977805]
[1693834716208,23.64017639,1633.4,1633.3,0.67977805]
[1693834716437,14.51798639,1633.4,1633.3,1.74358188]
[1693834716635,7.7575923,1633.4,1633.3,2.90343112]
[1693834716840,1.6354023,1633.4,1633.3,3.85905302]
[1693834717034,7.7575923,1633.4,1633.3,3.85905302]
[1693834717348,6.859343,1633.4,1633.3,3.85905302]
[1693834718528,6.859343,1633.4,1633.3,3.22189951]
[1693834723456,6.859343,1633.4,1633.3,3.86070927]
[1693834724851,19.103723,1633.4,1633.3,2.38239164]
[1693834725613,12.981533,1633.4,1633.3,2.38239164]
[1693834731631,12.981533,1633.4,1633.3,1.74358188]
[1693834735561,14.388533,1633.4,1633.3,0.67977805]
[1693834735958,14.388533,1633.4,1633.3,1.74348587]
[1693834736460,20.510723,1633.4,1633.3,1.74348587]
[1693834738846,0.39902148,1633.3,1633.2,0.83880976]
[1693834739024,12.64416148,1633.3,1633.2,0.83880976]
[1693834742578,12.64416148,1633.3,1633.2,0.14880976]
[1693834743583,6.52159148,1633.3,1633.2,0.14880976]
[1693834744288,0.39902148,1633.3,1633.2,0.14880976]
[1693834744458,0.39902148,1633.3,1633.2,2.20961643]
[1693834744665,0.737153,1633.4,1633.2,2.20961643]
[1693834746485,0.737153,1633.4,1633.3,0.72060548]
[1693834751890,0.737153,1633.4,1633.3,1.67622738]
[1693834752458,0.737153,1633.4,1633.3,2.31542901]
[1693834752659,0.737153,1633.4,1633.3,3.57026273]
[1693834754399,0.737153,1633.4,1633.3,9.69283273]
[1693834755699,0.737153,1633.4,1633.3,9.0536311]
[1693834758978,0.737153,1633.4,1633.3,10.11725132]
[1693834767507,0.737153,1633.4,1633.3,8.8624176]
[1693834772817,6.859343,1633.4,1633.3,2.7398476]
[1693834773006,6.859343,1633.4,1633.3,3.37923794]
[1693834775426,12.981533,1633.4,1633.3,3.37923794]
[1693834776146,19.103723,1633.4,1633.3,3.37923794]
[1693834776321,21.98120381,1633.4,1633.3,2.42361604]
[1693834789151,15.85901381,1633.4,1633.3,2.42361604]
[1693834798251,12.981533,1633.4,1633.3,2.42361604]
[1693834808879,0.737153,1633.4,1633.3,9.50180794]
[1693834809075,0.737153,1633.4,1633.3,8.8624176]
[1693834817147,6.859343,1633.4,1633.3,8.8624176]
[1693834817551,6.859343,1633.4,1633.3,2.7398476]
[1693834818188,0.737153,1633.4,1633.3,3.82721618]
[1693834821393,0.57232642,1633.4,1633.3,4.4691922]
[1693834821592,2.14224507,1633.5,1633.3,7.36044832]
[1693834821887,2.14224507,1633.5,1633.4,4.27342162]
[1693834822090,6.30165568,1633.9,1633.4,5.21397294]
[1693834822269,6.30165568,1633.9,1633.7,0.64017902]
[1693834822270,8.44337752,1633.9,1633.7,0.64017902]
[1693834822882,8.44337752,1633.9,1633.7,1.70379924]
[1693834823282,8.44337752,1633.9,1633.7,1.06362022]
[1693834823479,8.44337752,1633.9,1633.6,3.19114756]
[1693834823684,2.32295752,1633.9,1633.7,2.02270577]
[1693834823996,2.32295752,1633.9,1633.8,1.06341199]
[1693834824395,2.32295752,1633.9,1633.7,6.44003476]
[1693834827078,2.32295752,1633.9,1633.8,0.56935865]
[1693834828497,0.18123568,1633.9,1633.8,0.56935865]
[1693834828721,0.18123568,1633.9,1633.8,1.49140799]
[1693834831487,6.30155568,1633.9,1633.8,0.56935865]
[1693834831685,12.42187568,1633.9,1633.8,0.56935865]
[1693834831886,18.54219568,1633.9,1633.8,0.56935865]
[1693834832515,18.54219568,1633.9,1633.8,0.57287302]
[1693834832516,20.6839164,1633.9,1633.8,0.57287302]
[1693834833315,22.0909164,1633.9,1633.8,0.57287302]
[1693834836405,21.8909164,1633.9,1633.8,0.57287302]
[1693834837551,20.4839164,1633.9,1633.8,0.57287302]
[1693834837905,14.3635964,1633.9,1633.8,0.57287302]
[1693834838260,8.2432764,1633.9,1633.8,0.57287302]
[1693834839641,2.14172072,1633.9,1633.8,0.57287302]
[1693834842245,2.14172072,1633.9,1633.8,6.90536543]
[1693834842808,2.14172072,1633.9,1633.8,8.42909197]
[1693834844848,2.14172072,1633.9,1633.8,2.30839197]
[1693834845034,2.14172072,1633.9,1633.8,0.78466543]
[1693834846024,8.26204072,1633.9,1633.8,0.78466543]
[1693834847949,14.38236072,1633.9,1633.8,0.78466543]
[1693834848854,15.78936072,1633.9,1633.8,0.78466543]
[1693834851257,24.99153476,1633.9,1633.8,0.78466543]
[1693834851574,31.85542324,1633.9,1633.8,0.78466543]
[1693834851921,29.71370252,1633.9,1633.8,0.78466543]
[1693834852124,14.38535396,1633.6,1633.4,0.64017902]
[1693834852351,14.38535396,1633.6,1633.5,0.0032735]
[1693834852915,8.26361396,1633.6,1633.5,0.0032735]
[1693834853415,14.38511396,1633.6,1633.5,0.0032735]
[1693834855472,30.1867954,1633.6,1633.5,0.0032735]
[1693834856429,30.1867954,1633.6,1633.3,0.64017902]
[1693834856659,4.407,1633.5,1633.3,0.64017902]
[1693834856864,4.407,1633.5,1633.4,0.72107236]
[1693834856865,3.0,1633.5,1633.4,0.72107236]
[1693834857156,9.12195,1633.5,1633.4,0.72107236]
[1693834857347,9.12195,1633.5,1633.4,1.78803905]
[1693834857656,15.24396,1633.5,1633.4,1.06696669]
[1693834857854,15.24396,1633.5,1633.4,0.00328296]
[1693834858463,15.24396,1633.5,1633.3,1.70386275]
[1693834858961,15.24396,1633.5,1633.4,0.72186027]
[1693834859120,15.24396,1633.5,1633.4,1.785544]
[1693834859928,15.24396,1633.5,1633.4,1.06368373]
[1693834860134,21.36597,1633.5,1633.3,1.70386275]
[1693834860339,21.36597,1633.5,1633.4,1.06696669]
[1693834860640,24.4696374,1633.5,1633.4,1.06696669]
[1693834860834,24.4696374,1633.5,1633.4,0.00328296]
[1693834861053,24.4696374,1633.5,1633.4,0.72492689]
[1693834861251,24.4696374,1633.5,1633.4,1.78861062]
[1693834862863,24.4696374,1633.5,1633.4,0.72492689]
[1693834871069,27.55149144,1633.5,1633.4,0.72492689]
[1693834871277,28.95849144,1633.5,1633.4,0.72492689]
[1693834871641,28.95849144,1633.5,1633.4,0.00328296]
[1693834872372,28.95849144,1633.5,1633.2,1.7038719]
[1693834872581,2.1412845,1633.4,1633.2,1.7038719]
[1693834872780,18.36771,1633.3,1633.2,1.7038719]
[1693834873384,18.36771,1633.3,1633.2,1.70717379]
[1693834881767,12.24514,1633.3,1633.2,0.64348091]
[1693834881957,12.24514,1633.3,1633.2,1.70717379]
[1693834886491,12.24514,1633.3,1633.2,2.66744233]
[1693834886990,12.24514,1633.3,1633.2,3.41223815]
[1693834887292,6.12257,1633.3,1633.2,3.41223815]
[1693834889502,12.24467,1633.4,1633.2,4.50380977]
[1693834889707,6.12221,1633.4,1633.3,1.7038719]
[1693834889890,6.12193,1633.5,1633.3,1.7038719]
[1693834890087,6.12183,1633.5,1633.4,0.64017902]
[1693834890496,6.12183,1633.5,1633.4,0.64346198]
[1693834892800,6.12182,1633.5,1633.4,0.64346198]
[1693834893001,6.12182,1633.5,1633.4,2.101933]
[1693834893208,6.12182,1633.5,1633.4,3.06220154]
[1693834894093,6.12182,1633.5,1633.4,9.18439154]
[1693834894413,6.12182,1633.5,1633.4,9.1837859]
[1693834895396,6.12182,1633.5,1633.4,8.54421252]
[1693834895797,12.24364,1633.5,1633.4,3.06173366]
[1693834896014,18.36546,1633.5,1633.4,1.70668698]
[1693834896375,18.36546,1633.5,1633.4,0.6429941]
[1693834901333,12.24364,1633.5,1633.4,0.6429941]
[1693834902202,12.24364,1633.5,1633.4,1.34363737]
[1693834902406,12.24364,1633.5,1633.4,2.40733025]
[1693834915175,6.12182,1633.5,1633.4,2.40733025]
[1693834915575,12.24342,1633.6,1633.4,2.40733025]
[1693834915872,16.52046796,1633.6,1633.5,1.06369288]
[1693834916466,16.52046796,1633.6,1633.5,1.06741449]
[1693834917064,16.52046796,1633.6,1633.5,1.76787955]
[1693834917269,22.64217796,1633.6,1633.5,1.76787955]
[1693834928255,20.50724396,1633.6,1633.5,1.76787955]
[1693834934490,20.50724396,1633.6,1633.5,1.76415794]
[1693834938470,21.91424396,1633.6,1633.5,1.76415794]
[1693834939079,19.77213,1633.6,1633.5,1.76415794]
[1693834939409,20.69029123,1633.6,1633.5,0.70040325]
[1693834939577,23.37144235,1633.6,1633.5,0.70040325]
[1693834939768,1.18048007,1633.4,1633.3,0.96026854]
[1693834939964,13.42486007,1633.4,1633.3,0.96026854]
[1693834940173,13.42486007,1633.4,1633.3,1.62004348]
[1693834951026,7.30267007,1633.4,1633.3,1.62004348]
[1693834951595,1.18048007,1633.4,1633.3,1.62004348]
[1693834952414,1.18048007,1633.4,1633.3,1.94013299]
[1693834952630,1.18048007,1633.4,1633.3,3.30476505]
[1693834952826,6.12157,1633.6,1633.3,3.30476505]
[1693834953025,6.12157,1633.6,1633.5,0.64045477]
[1693834953226,8.26368396,1633.6,1633.5,6.76227477]
[1693834953525,8.26368396,1633.6,1633.5,7.48618613]
[1693834955734,2.14211396,1633.6,1633.5,7.48618613]
[1693834959340,2.14211396,1633.6,1633.5,8.54977112]
[1693834959534,2.14211396,1633.6,1633.5,7.80131112]
[1693834967347,2.14211396,1633.6,1633.5,9.70156845]
[1693834967518,2.14211396,1633.6,1633.5,11.94260866]
[1693834967712,2.14211396,1633.6,1633.5,12.3889265]
[1693834968149,6.1201,1634.0,1633.5,12.3889265]
[1693834968346,2.14172072,1633.9,1633.6,2.02355819]
[1693834968547,2.14172072,1633.9,1633.6,5.73439292]
[1693834968746,2.14172072,1633.9,1633.7,1.06358499]
[1693834969045,2.14172072,1633.9,1633.7,1.7013251]
[1693834969247,2.14172072,1633.9,1633.8,1.06358499]
[1693834970319,2.14172072,1633.9,1633.8,19.42568499]
[1693834970626,2.14172072,1633.9,1633.8,21.49599706]
[1693834971948,14.687218,1634.2,1633.8,21.49599706]
[1693834972142,14.687218,1634.2,1633.8,22.64961207]
[1693834972323,2.14145864,1634.1,1633.8,22.64961207]
[1693834976885,2.14145864,1634.1,1633.9,0.63738385]
[1693834979466,2.14145864,1634.1,1634.0,6.11995]
[1693834981231,2.14145864,1634.1,1634.0,7.40769939]
[1693834984270,2.14145864,1634.1,1634.0,8.47094476]
[1693834986883,1.68580889,1634.1,1634.0,8.47094476]
[1693834987689,1.68580889,1634.1,1634.0,9.11064032]
[1693834987849,1.32994507,1634.1,1634.0,9.43091796]
[1693834988273,17.684441,1634.5,1634.0,9.43091796]
[1693834988482,3.0,1634.4,1634.1,1.70038297]
[1693834988656,2.14118187,1634.3,1634.1,2.70718853]
[1693834988856,2.14118187,1634.3,1634.2,1.06324537]
[1693834991459,2.14118187,1634.3,1634.2,1.70038297]
[1693834992090,2.14118187,1634.3,1634.2,2.33649145]
[1693834992856,2.14118187,1634.3,1634.2,1.69935385]
[1693834993261,2.14118187,1634.3,1634.2,8.66322087]
[1693834993492,2.14118187,1634.3,1634.2,9.30035847]
[1693834995096,0.9176557,1634.5,1634.3,1.70064026]
[1693834995300,6.11673,1634.9,1634.4,2.33595032]
[1693834995500,1.6032,1634.8,1634.6,0.63610847]
[1693834995663,16.69750466,1635.0,1634.6,0.63610847]
[1693834995867,1.6032,1634.9,1634.6,1.69935384]
[1693834996064,16.87944248,1635.0,1634.6,1.69935384]
[1693834996416,20.93008148,1635.0,1634.6,1.69935384]
[1693834996567,23.84013763,1635.0,1634.6,1.69935384]
[1693834996763,24.73981808,1635.0,1634.6,1.69935384]
[1693834996963,3.0,1634.9,1634.6,1.69935384]
[1693834998098,9.11662,1634.9,1634.6,1.69935384]
[1693834998466,9.11662,1634.9,1634.7,6.11727]
[1693835001261,9.11662,1634.9,1634.8,1.06287847]
[1693835002068,16.64024,1634.9,1634.6,0.63610847]
[1693835002327,22.75686,1634.9,1634.6,1.59027117]
[1693835002520,26.71256401,1634.9,1634.7,1.06290802]
[1693835002738,26.71256401,1634.9,1634.6,1.59027117]
[1693835002898,10.68385012,1635.0,1634.8,0.9541627]
[1693835002899,3.54121715,1635.0,1634.8,0.9541627]
[1693835003079,3.54121715,1635.0,1634.9,0.63517492]
[1693835003279,3.05771466,1635.0,1634.9,0.63517492]
[1693835003624,2.14033958,1635.0,1634.9,1.98183307]
[1693835003827,0.101,1635.1,1634.9,3.04474495]
[1693835003973,0.101,1635.1,1635.0,1.06291188]
[1693835007074,0.101,1635.1,1635.0,1.69701027]
[1693835007903,9.75859361,1635.2,1635.0,1.69701027]
[1693835008229,6.11583,1635.1,1635.0,0.63409839]
[1693835008586,15.87423361,1635.2,1635.0,1.69682489]
[1693835008785,15.87423361,1635.2,1635.0,0.63409839]
[1693835009404,18.68808297,1635.2,1635.0,0.63409839]
[1693835009641,1.407,1635.1,1635.0,0.63409839]
[1693835009784,1.407,1635.1,1635.0,1.69682637]
[1693835013396,0.4434521,1635.0,1634.9,0.63517492]
[1693835014002,0.4434521,1635.0,1634.9,6.75152492]
[1693835018533,1.24008431,1635.0,1634.9,0.63517492]
[1693835018732,1.24008431,1635.0,1634.8,1.58933762]
[1693835018903,1.24008431,1635.0,1634.8,0.63517492]
[1693835018904,13.47296431,1635.0,1634.8,0.63517492]
[1693835019300,7.35640431,1635.0,1634.8,1.58933762]
[1693835020630,13.47260431,1635.0,1634.8,1.58933762]
[1693835021042,7.35628431,1635.0,1634.9,0.65410296]
[1693835021339,7.35628431,1635.0,1634.8,1.58933762]
[1693835021503,6.5596521,1635.0,1634.8,1.58933762]
[1693835022409,6.5596521,1635.0,1634.9,0.63517492]
[1693835023028,0.4434521,1635.0,1634.9,0.63517492]
[1693835026743,13.44483349,1635.1,1634.9,0.63517492]
[1693835027246,2.14028007,1635.0,1634.9,0.63517492]
[1693835027817,1.71658297,1635.0,1634.9,0.63517492]
[1693835028217,1.71658297,1635.0,1634.8,7.70625762]
[1693835028416,1.71658297,1635.0,1634.9,0.63517492]
[1693835029627,1.71658297,1635.0,1634.8,7.0710827]
[1693835029628,1.71658297,1635.0,1634.8,7.70625762]
[1693835030155,1.71658297,1635.0,1634.9,0.63517492]
[1693835030358,3.23272462,1635.0,1634.9,0.63517492]
[1693835030927,7.83278297,1635.0,1634.9,0.63517492]
[1693835033357,7.83278297,1635.0,1634.9,1.69795803]
[1693835034558,9.23978297,1635.0,1634.9,0.63517492]
[1693835035555,12.32163701,1635.0,1634.9,0.63517492]
[1693835035754,12.23978297,1635.0,1634.9,1.06278311]
[1693835036053,12.23978297,1635.0,1634.9,1.69795803]
[1693835036054,4.71658297,1635.0,1634.9,1.69795803]
[1693835036428,10.83278297,1635.0,1634.9,0.63517492]
[1693835036656,10.83278297,1635.0,1634.9,1.69795803]
[1693835037034,16.94898297,1635.0,1634.9,1.69795803]
[1693835037233,16.94898297,1635.0,1634.9,2.35161656]
[1693835037633,23.74433831,1635.0,1634.9,2.35161656]
[1693835040351,23.74433831,1635.0,1634.9,2.24299615]
[1693835040655,23.74433831,1635.0,1634.9,3.30577926]
[1693835041359,23.74433831,1635.0,1634.9,2.35161656]
[1693835042232,7.02308427,1635.0,1634.9,2.35161656]
[1693835042432,4.71658297,1635.0,1634.9,2.35161656]
[1693835045276,10.83278297,1635.0,1634.9,2.35161656]
[1693835045469,10.83278297,1635.0,1634.9,1.71644164]
[1693835049365,10.83278297,1635.0,1634.9,0.65365853]
[1693835049769,10.83278297,1635.0,1634.8,7.78968]
[1693835050375,10.83278297,1635.0,1634.8,6.11678]
[1693835051843,10.83278297,1635.0,1634.9,0.83434048]
[1693835052038,10.83278297,1635.0,1634.9,1.52945253]
[1693835052039,7.83278297,1635.0,1634.9,1.52945253]
[1693835052240,1.71658297,1635.0,1634.9,3.3471109]
[1693835052454,1.71658297,1635.0,1634.9,2.71193598]
[1693835052657,1.71658297,1635.0,1634.9,3.35053521]
[1693835053244,1.71658297,1635.0,1634.9,2.39637251]
[1693835053667,6.21617,1635.3,1634.9,2.39637251]
[1693835053977,2.1401492,1635.1,1635.0,1.06266123]
[1693835054376,2.1401492,1635.1,1635.0,1.46294848]
[1693835054540,2.1401492,1635.1,1635.0,13.69534848]
[1693835058270,2.1401492,1635.1,1635.0,13.69525664]
[1693835059883,2.1401492,1635.1,1635.0,19.81145664]
[1693835060247,2.1401492,1635.1,1635.0,18.74888725]
[1693835066898,2.1401492,1635.1,1635.0,19.57975273]
[1693835071167,0.101,1635.3,1635.0,19.57975273]
[1693835071370,0.101,1635.3,1635.1,1.95797527]
[1693835071371,2.24088862,1635.3,1635.1,1.95797527]
[1693835071811,2.24088862,1635.3,1635.0,1.23115273]
[1693835072173,2.24088862,1635.3,1635.0,2.80855273]
[1693835075882,2.24088862,1635.3,1635.0,1.23115273]
[1693835076416,4.54768862,1635.3,1635.0,1.23115273]
[1693835076985,4.54768862,1635.3,1635.1,6.11576]
[1693835082014,4.54768862,1635.3,1635.2,0.82982075]
[1693835082412,2.24088862,1635.3,1635.2,0.82982075]
[1693835094939,0.101,1635.3,1635.2,0.82982075]
[1693835095237,1.0182068,1635.3,1635.2,0.86753987]
[1693835095536,1.0182068,1635.3,1635.1,6.11556]
[1693835095715,1.0182068,1635.3,1635.2,0.86753987]
[1693835095916,1.0182068,1635.3,1635.1,4.84295067]
[1693835096327,2.14007699,1635.2,1635.1,4.84295067]
[1693835096523,2.14007699,1635.2,1635.1,5.90553446]
[1693835097030,2.14007699,1635.2,1635.1,6.86980276]
[1693835098229,2.14007699,1635.2,1635.1,12.98536276]
[1693835110049,3.86290537,1635.2,1635.1,2.02685209]
[1693835110369,16.09380537,1635.2,1635.1,0.9642683]
[1693835110849,16.09380537,1635.2,1634.9,0.63859923]
[1693835111050,12.22245537,1635.2,1634.9,1.70124902]
[1693835111854,18.33790537,1635.2,1634.9,1.70124902]
[1693835112158,18.33790537,1635.2,1635.0,0.96445893]
[1693835113059,1.83379054,1635.1,1635.0,0.96445893]
[1693835113227,14.06545054,1635.1,1635.0,0.96445893]
[1693835113419,14.06545054,1635.1,1635.0,2.02711528]
[1693835114631,14.06545054,1635.1,1635.0,0.96445893]
[1693835114836,14.06545054,1635.1,1634.8,7.70949193]
[1693835115037,18.34749,1635.1,1634.9,1.06266054]
[1693835116040,7.69340537,1635.2,1634.9,1.06266054]
[1693835116226,18.34749,1635.1,1634.9,1.06266054]
[1693835116428,18.34749,1635.1,1634.8,1.59276193]
[1693835116706,19.75449,1635.1,1634.9,1.06266357]
[1693835116995,19.75449,1635.1,1634.8,0.63859923]
[1693835116996,22.35857954,1635.1,1634.8,0.63859923]
[1693835117966,22.35857954,1635.1,1634.8,1.70127189]
[1693835118194,22.35857954,1635.1,1634.9,1.06267266]
[1693835118495,22.35857954,1635.1,1634.8,6.75543923]
[1693835118796,19.75449,1635.1,1634.9,1.06267118]
[1693835120765,19.75449,1635.1,1634.8,0.63859923]